Cogmind - Beta 16.1 --- EXPLORER MODE // 2026.03.09 @ 08:49:17 Player: fumiduki Result: Destroyed by Y-45 Defender with Heavy Assault Rifle Performance ------------- Evolutions (2) 1000 Regions Visited (3) 600 Robots Destroyed (14) 70 Value Destroyed (317) 317 Prototype IDs (1) 20 Alien Tech Used (0) 0 Bonus (0) 0 TOTAL SCORE: 2007 Bonus ------- None Cogmind --------- Core Integrity 0/550 Matter 300/300 Energy 84/100 System Corruption 0% Temperature Cool (9) Movement Core (50) Location -8/Materials Parts ------- > --- POWER (2) -------- (None) > --- PROPULSION (4) --- (None) > --- UTILITY (4) ------ Weight Redist. System Improved Signal Interpreter Improved Signal Interpreter Improved Terrain Scan Processor > --- WEAPON (2) ------- (None) > --- INVENTORY (5) ---- Compact Matter Pod (8) Terrain Scan Processor Terrain Scan Processor Peak State ------------ > --- POWER ------------ Cooled Ion Engine Light Nuclear Core > --- PROPULSION ------- Flight Unit Flight Unit Flight Unit VTOL Module > --- UTILITY ---------- Improved Signal Interpreter Improved Signal Interpreter Terrain Scan Processor ECM Suite > --- WEAPON ----------- Light Assault Rifle > --- INVENTORY -------- Ion Engine Ion Engine Weight Redist. System Terrain Scan Processor Terrain Scan Processor [Rating: 21] Favorites ----------- Power Ion Engine Engine Ion Engine Power Core Light Nuclear Core Propulsion Aluminum Leg Leg Aluminum Leg Flight Unit Flight Unit Utility Terrain Scanner Device Terrain Scanner Storage Medium Storage Unit Processor Terrain Scan Processor Protection Light Armor Plating Weapon Light Assault Rifle Energy Gun Medium Laser Ballistic Gun Light Assault Rifle Special Weapon Plasma Cutter Build | -11 -10 -9 -8 ------- Run | Yrd Mat Mat Mat Slots Evolved 5 | . 1 2 2 Power 1 | . . . 1 Propulsion 2 | . . 1 1 Utility 2 | . 1 1 . Weapon . | . . . . Parts Attached 34 | 8 5 8 13 Power 5 | 1 1 1 2 Engine 4 | 1 1 1 1 Core 1 | . . . 1 Reactor . | . . . . Propulsion 10 | 2 1 4 3 Treads . | . . . . Leg 3 | 2 1 . . Wheel . | . . . . Hover . | . . . . Flight 7 | . . 4 3 Utility 12 | 3 1 3 5 Device 4 | 2 . . 2 Storage 2 | . 1 1 . Processor 5 | . . 2 3 Hackware . | . . . . Protection 1 | 1 . . . Artifact . | . . . . Weapon 7 | 2 2 . 3 Energy Gun 2 | 1 . . 1 Energy Cannon . | . . . . Ballistic Gun 4 | 1 2 . 1 Ballistic Cannon . | . . . . Launcher . | . . . . Special Weapon 1 | . . . 1 Impact Weapon . | . . . . Slashing Weapon . | . . . . Piercing Weapon . | . . . . Special Melee Weapon . | . . . . Unidentified Prototypes 1 | . . 1 . Parts Lost 18 | . . 4 14 Power 4 | . . . 4 Propulsion 7 | . . 3 4 Utility 3 | . . 1 2 Weapon 4 | . . . 4 Highest Loss Streak 8 | . . 4 8 To Critical Strikes . | . . . . Average Backups 3 | 1 3 3 4 Power . | . . . 1 Propulsion 1 | . 1 . . Utility 1 | 1 1 2 2 Weapon . | . . . . Tool/Special . | . . . . Unused Backups 3 | . . . 3 Power . | . . . . Propulsion . | . . . . Utility 3 | . . . 3 Weapon . | . . . . Tool/Special . | . . . . Average Slot Usage (%) 87 | . 100 89 51 Engine 10 | . 12 10 8 Leg 15 | . 25 . . Flight 4 | . . 24 6 Device 11 | . 12 18 6 Storage 7 | . 12 1 . Processor 7 | . . 16 21 Protection 7 | . 12 . . Energy Gun 2 | . 3 . . Ballistic Gun 17 | . 21 18 5 Peak Build Rating 21 | 7 8 13 21 Average Rating 8 | 5 7 10 11 On Entrance 6 | . 7 8 9 Avg Prop Armor Cover (%) 17 | 17 . . . Naked Turns . | . . . . Heaviest Build 21 | 11 21 15 16 Greatest Support 20 | 3 20 12 16 Greatest Overweight (x) 4 | 3 1 2 4 Average Overweight (x) . | 2 . . . Largest Inventory Capacity 10 | 5 10 10 5 Average Capacity 7 | 5 10 5 5 Most Carried 6 | 2 6 6 5 Average Carried 3 | 1 3 2 4 Final Capacity 10 | 5 10 5 5 Final Carried 6 | 2 6 5 3 Class Distribution -------------------- 100% | Hacker-Mutant Dominant Class ---------------- Hacker-Mutant | -10/Materials Hacker-Mutant | -9/Materials Hacker-Mutant | -8/Materials Resources | -11 -10 -9 -8 ----------- Run | Yrd Mat Mat Mat Matter Collected 616 | 188 205 117 106 Remotely . | . . . . Salvage Created 425 | . 251 98 76 Parts 25 | . 16 5 4 Haulers Intercepted 1 | . . 1 . Recyclers Shooed . | . . . . Parts Field Recycled . | . . . . Retrieved Matter . | . . . . Parts Self-Destructed . | . . . . Prevented . | . . . . Parts Restored . | . . . . Kills | -11 -10 -9 -8 ------- Run | Yrd Mat Mat Mat Combat Hostiles Destroyed 12 | . 9 1 2 Guns 11 | . 9 1 1 Cannons 1 | . . . 1 Classes Destroyed 4 | . 2 2 . Worker 1 | . . 1 . Hauler 1 | . . 1 . Swarmer 5 | . 4 1 . Grunt 7 | . 5 . 2 Best Kill Streak 6 | . 6 2 1 Combat Bots Only 6 | . 6 1 1 Max Kills in Single Turn 2 | . 2 1 1 Gunslinging 1 | . 1 . . Exploded . | . . . . Melee . | . . . . Uniques/NPCs Destroyed . | . . . . Combat | -11 -10 -9 -8 -------- Run | Yrd Mat Mat Mat Hostile Shots Fired 330 | . 67 82 181 Missed 101 | . 16 36 49 Hits 229 | . 51 46 132 Projectile 229 | . 51 46 132 Critical Strikes 5 | . . . 5 Damage Taken 1786 | . 328 300 1158 Core 667 | . 49 61 557 Absorbed by Shields 88 | . . . 88 Ignored by Resistances 1180 | . 219 197 764 Core Remaining (%) 88 | 100 80 84 . Volleys Fired 73 | . 25 12 36 Largest 2 | . 2 2 2 Hottest 70 | . 70 40 65 Shots Fired 114 | . 50 24 40 Gun 110 | . 50 24 36 Cannon . | . . . . Launcher . | . . . . Special 4 | . . . 4 Kinetic 83 | . 27 24 32 Thermal 27 | . 23 . 4 Explosive . | . . . . Electromagnetic 4 | . . . 4 Robot Hit Streak 32 | . 32 15 28 Robot Miss Streak 2 | . 2 1 2 Penetration Max . | . . . . Secondary Targets 4 | . 3 1 . Max Gunslinging Chain 1 | . 1 1 . Shots Hit Robots 98 | . 44 17 37 Core Hits 28 | . 14 4 10 Critical Kills . | . . . . Critical Parts Destroyed . | . . . . Critical Strikes 2 | . 2 . . Burn 2 | . 2 . . Melee Attacks . | . . . . Impact . | . . . . Slashing . | . . . . Piercing . | . . . . Sneak Attacks . | . . . . Combat Hostiles . | . . . . Follow-up Attacks . | . . . . Damage Inflicted 1055 | . 557 140 358 Guns 1019 | . 557 140 322 Cannons . | . . . . Explosions . | . . . . Melee . | . . . . Ramming 1 | . . . 1 Kinetic 700 | . 306 140 254 Thermal 286 | . 251 . 35 Explosive . | . . . . Electromagnetic 68 | . . . 68 Impact . | . . . . Slashing . | . . . . Piercing . | . . . . Highest Corruption . | . . . . Average Corruption . | . . . . Corruption Purged . | . . . . Corruption Blocked . | . . . . Overload Shots . | . . . . Overflow Damage . | . . . . Projectiles . | . . . . Explosions . | . . . . Melee . | . . . . Knockbacks . | . . . . Impact . | . . . . Kinetic . | . . . . Secondary . | . . . . Self-Inflicted Damage . | . . . . Shots . | . . . . Rammed 1 | . . . 1 Targets Rammed 1 | . . . 1 Kicked . | . . . . Crushed . | . . . . Highest Temperature 270 | . 270 9 96 Average Temperature 88 | . 114 5 28 Received Heat Transfer 1199 | . 210 99 890 Siege Activations . | . . . . Martial Activations . | . . . . Shielding Activations . | . . . . Robots Disrupted . | . . . . Combat Hostiles . | . . . . Robots Corrupted . | . . . . Combat Hostiles . | . . . . Parts Fried . | . . . . Impact Corruptions . | . . . . Robots Melted . | . . . . Combat Hostiles . | . . . . Parts Melted 4 | . 4 . . Heat Transferred 999 | . 888 . 111 Parts Sabotaged . | . . . . Parts Stolen . | . . . . Parts Stripped . | . . . . Power Chain Reactions . | . . . . Alert | -11 -10 -9 -8 ------- Run | Yrd Mat Mat Mat Maximum Alert Level . | . . . . Low Security (%) 100 | 100 100 100 100 Level 1 . | . . . . Level 2 . | . . . . Level 3 . | . . . . Level 4 . | . . . . Level 5 . | . . . . High Security . | . . . . Max Security . | . . . . Peak Influence 125 | . 125 60 40 Initial . | . . . . Average 13 | . 18 13 5 Influence Increases 472 | . 235 120 117 Destroy 0b10 Robot/C 240 | . 180 20 40 Destroy 0b10 Robot/NC 10 | . . 10 . Destroy Leader 42 | . 40 2 . Successful Hack 45 | . 15 28 2 Lose Combat Pursuer 135 | . . 60 75 Influence Decreases 467 | . 235 120 112 Time Decay 397 | . 235 90 72 Lost Part 70 | . . 30 40 Squads Dispatched 7 | . 2 3 2 Investigation 5 | . 2 3 . Extermination . | . . . . Reinforcement 2 | . . . 2 Assault . | . . . . Garrison . | . . . . Intercept . | . . . . Searches Triggered . | . . . . Construction Impeded . | . . . . Haulers Reinforced . | . . . . Active Scanning Responses . | . . . . Cargo Convoy Interrupts . | . . . . Stealth | -11 -10 -9 -8 --------- Run | Yrd Mat Mat Mat Distress Signals 2 | . 1 1 . Communications Jammed . | . . . . Distress Signals . | . . . . Times Spotted 53 | . 16 21 16 Peak Tracking Total 10 | . 4 10 6 Tactical Retreats 11 | . . 7 4 ECM-based Alert Blocks 11 | . . 11 . Traps | -11 -10 -9 -8 ------- Run | Yrd Mat Mat Mat Traps Triggered 2 | . 2 . . Indirectly . | . . . . Trap Hack Attempts . | . . . . Triggered . | . . . . Disarmed . | . . . . Reprogrammed . | . . . . Reused . | . . . . Traps Extracted . | . . . . Installed . | . . . . Triggered . | . . . . Machines | -11 -10 -9 -8 ---------- Run | Yrd Mat Mat Mat Machines Disabled . | . . . . Max in Single Turn . | . . . . Machines Repaired . | . . . . Machines Dismantled . | . . . . Machines Sabotaged . | . . . . Overloaded Fab Kills . | . . . . Hacking | -11 -10 -9 -8 --------- Run | Yrd Mat Mat Mat Machines Accessed 7 | . 3 3 1 Terminals 7 | . 3 3 1 Fabricators . | . . . . Repair Stations . | . . . . Recycling Units . | . . . . Scanalyzers . | . . . . Garrison Access . | . . . . Total Hacks 27 | . 10 13 4 Successful 20 | . 8 10 2 Failed 7 | . 2 3 2 Catastrophic 1 | . 1 . . Database Lockouts . | . . . . Manual . | . . . . Terminals 27 | . 10 13 4 Fabricators . | . . . . Repair Stations . | . . . . Recycling Units . | . . . . Scanalyzers . | . . . . Garrison Access . | . . . . Terminal Hacks 20 | . 8 10 2 Record 6 | . 3 3 . Robot Analysis 1 | . . 1 . Branch Access Points 1 | . . 1 . Emergency Access Points 1 | . . 1 . Alert Level 1 | . 1 . . Locate Traps 1 | . 1 . . Dispatch Records 1 | . . . 1 Maintenance Status 1 | . . 1 . Transport Status 2 | . 1 1 . Investigation Status 1 | . . 1 . Reinforcement Status 1 | . 1 . . Recall Investigation 1 | . . . 1 Registered Components 1 | . . 1 . Zone Layout 1 | . 1 . . Fabricator Hacks . | . . . . Repair Station Hacks . | . . . . Recycling Unit Hacks . | . . . . Scanalyzer . | . . . . Garrison Access Hacks . | . . . . Unauthorized Hacks . | . . . . Terminals . | . . . . Fabricators . | . . . . Repair Stations . | . . . . Recycling Units . | . . . . Scanalyzers . | . . . . Garrison Access . | . . . . Data Cores Recovered . | . . . . Used . | . . . . Hacking Detections 7 | . 3 3 1 Full Trace Events 7 | . 3 3 1 Feedback Events . | . . . . Feedback Blocked . | . . . . Robot Schematics Acquired . | . . . . Robots Built . | . . . . Authchips . | . . . . Time . | . . . . Total Robot Build Rating . | . . . . Part Schematics Acquired . | . . . . Parts Built . | . . . . Authchips . | . . . . Time . | . . . . Total Part Build Rating . | . . . . Part Studies Acquired . | . . . . Parts Repaired . | . . . . Time . | . . . . Parts Recycled . | . . . . Recycled Matter . | . . . . Retrieved Matter . | . . . . Retrieved Components . | . . . . Parts Scanalyzed . | . . . . Part Schematics Acquired . | . . . . Parts Damaged . | . . . . Bothacking | -11 -10 -9 -8 ------------ Run | Yrd Mat Mat Mat Used RIF Installer . | . . . . Robots Hacked . | . . . . Non-combat . | . . . . Combat . | . . . . Robot Hacks Applied . | . . . . Relay Couplers Released . | . . . . Fabnet Peak Effective % . | . . . . Robots Rewired . | . . . . Allies Hacked . | . . . . Hacks Repelled . | . . . . Allies | -11 -10 -9 -8 -------- Run | Yrd Mat Mat Mat Total Allies . | . . . . Largest Group . | . . . . Highest-Rated Group . | . . . . Highest-Rated Ally . | . . . . Total Orders . | . . . . Ally Attacks . | . . . . Total Damage . | . . . . Kills . | . . . . Allies Corrupted . | . . . . Allies Melted . | . . . . Intel | -11 -10 -9 -8 ------- Run | Yrd Mat Mat Mat Active Infowar (turns) 1330 | . 967 209 154 Terrain 1154 | . 967 187 . ECM 271 | . . 117 154 Robot Analysis Total 1 | . . 1 . Derelict Logs Recovered . | . . . . Drone Launches . | . . . . Drone Recoveries . | . . . . Exploration | -11 -10 -9 -8 ------------- Run | Yrd Mat Mat Mat Turns Passed 1642 | 126 967 209 340 Spaces Moved 1117 | 69 477 322 249 Core 202 | 69 . . 133 Treads . | . . . . Legs 477 | . 477 . . Wheels . | . . . . Hover . | . . . . Flight 438 | . . 322 116 Fastest Speed 29 | 50 120 34 29 Average Speed 122 | 159 182 48 94 Slowest Speed 250 | 200 190 200 250 Overloaded Moves . | . . . . Propulsion Burnouts . | . . . . Robots Hopped 1 | . . 1 . Potential Cave-ins . | . . . . Cave-ins Triggered . | . . . . Exploration Rate (%) 32 | 5 67 36 21 Regions Visited 3 Branch Regions . Pre-discovered Areas . | . . . . Known Exits Taken 3 | 1 1 1 . Unknown Exits Taken . | . . . . Scrap Searched . | . . . . Spaces Dug . | . . . . Terrain Destroyed . | . . . . Melee . | . . . . Projectile . | . . . . AOE . | . . . . Terrain Rammed . | . . . . Walls Destroyed . | . . . . Machines Disabled . | . . . . Actions | -11 -10 -9 -8 --------- Run | Yrd Mat Mat Mat Total 1275 | 86 525 357 307 Wait 9 | . 5 4 . Move 1112 | 68 476 319 249 Hop 1 | . . 1 . Pick Up 27 | 9 9 6 3 Fast Attach 10 | . . 1 9 Attach 22 | 8 2 7 5 Detach 2 | 1 1 . . Swap 4 | . 3 1 . Drop 12 | . 4 6 2 Fire 73 | . 25 12 36 Melee . | . . . . Ram 1 | . . . 1 Kick . | . . . . Crush . | . . . . Escape Stasis . | . . . . Rewire . | . . . . Trap . | . . . . Miscellaneous 2 | . . . 2 Route ------- -11/Scrapyard -10/Materials (discovered 3 exits: *Mat x2 / *Min) -9/Materials (discovered 2 exits: *Mat / Min) -8/Materials History --------- Turn | Location | Event 2 | -11/Scrapyard | Met Revision 17 16 | -11/Scrapyard | Identified exit to Materials 16 | -11/Scrapyard | Discovered exit to Materials (range 16) 127 | -11/Scrapyard | Entered Materials 127 | -10/Materials | Evolved 1 slot: Utility x1 300 | -10/Materials | Build established: Hacker-Mutant 360 | -10/Materials | Identified exit to Mines 360 | -10/Materials | Discovered exit to Mines (range 16) 578 | -10/Materials | Identified exit to Materials 578 | -10/Materials | Discovered exit to Materials (range 16) 1064 | -10/Materials | Discovered exit to Materials (range 16) 1094 | -10/Materials | Entered another Materials area 1094 | -9/Materials | Evolved 2 slots: Propulsion x1, Utility x1 1216 | -9/Materials | Identified exit to Mines 1274 | -9/Materials | Identified exit to Materials 1274 | -9/Materials | Discovered exit to Materials (range 16) 1303 | -9/Materials | Entered another Materials area 1303 | -8/Materials | Evolved 2 slots: Power x1, Propulsion x1 1312 | -8/Materials | Lost 4 parts (3n1u) 1517 | -8/Materials | Lost 8 parts (1p4n1u2w) 1543 | -8/Materials | Core integrity fell below 50% 1562 | -8/Materials | Lost 3 parts (1p1u1w) 1624 | -8/Materials | Core integrity fell below 20% 1643 | -8/Materials | Destroyed by Y-45 Defender with Heavy Assault Rifle Last Messages --------------- 01622_ U-05 Engineer lays Concrete. 01622_ M-13 Machinist repairs G-47 Trooper. 01623_ U-05 Engineer lays Concrete. 01623_ Acquired 32 matter. 01624_ U-05 Engineer lays Concrete. 01624_ M-13 Machinist fits Backup Plating I on G-47 Trooper. 01626_ G-47 Trooper heat short circuits Particle Gun. 01626_ U-05 Engineer lays Concrete. 01626_ M-13 Machinist repairs G-47 Trooper Aluminum Leg. 01627_ U-05 Engineer lays Concrete. 01627_ Ion Engine destroyed. 01628_ G-47 Trooper heat damages Broken Particle Gun, Backup Plating I, Lgt. Nuclear Core, Aluminum Leg. 01628_ U-05 Engineer lays Concrete. 01638_ Critical hit (Burn: +37). 01641_ K-01 Serf cleans the Terminal. Map ----- +----------------------------------------------------+ | + ^""" #???????????????????????????????? | | # "Y" #???????????????????????????????? | | ! # * #???????????????????????????????? | | ?# = #???????????????????????????????? | | ####?# ###?????????????????????????????? | | ?????# "| ""#?????????????????????????????? | | ?????#^ """% T"#?????????????????????????????? | | ?????#^ "" ""#?????????????????????????????? | | ?????# ###?????????????????????????????? | | ?????# ############????????????????????? | | ?????# ????????????????? | | ?????# ????????????????? | | ?????# ########### ????????????????? | | ?????####+## # ! #??????????????????????? | | ??????? # # [ ##?????????????????????? | | ?????! ## ## ??????????????????????? | | ???# ## ## #??????????????????????? | | ???# ## ## ]]! #??????????????????????? | | ???# ## ## ]! ???????????????????????? | | ??########### ## ]! ????????????????????????? | | ??# ## ## ?????????????????????????? | | ??# ## ## "??????????+###????????????? | | ??# # ###Y########## #????????????? | | ??# # / #????????????? | | ??# ! + T Y #????????????? | | ??# # k @ o #????????????? | | ??# ! # ##########+### a????????? | | ??# ## ##?????????????????#?????????????? | | ??# ## #????????????????????????????????? | | ??## ######## #????????????????????????????????? | | ???###??????# #????????????????????????????????? | | ????????????# #????????????????????????????????? | | ?????????#### #????????????????????????????????? | | ????????##! #????????????????????????????????? | | ????????#! #????????????????????????????????? | | ????????#! #???######???????????????????????? | | ????????#! #?? #???????????????????????? | | ????????#! #??T" #???????????????????????? | | ????????##! #? #???????????????????????? | | ???########## #? #???????????????????????? | | ???# #### # ????????????????????????? | | ???# # """ #???????????????????????? | | ???# " + """ #???????????????????????? | | ???# # """ #???????????????????????? | | ???# #### # ????????????????????????? | | ???## ##??# #?#######????????????????????????? | | ????# #???# #????????????????????????????????? | | ????# #???# #????????????????????????????????? | | ????# #???# ###########??????????????????????? | | ????# #???# ## #??????????????????????? | +----------------------------------------------------+ Best States ------------- Heat Dissipation 31 Energy Generation 23 Energy Capacity 400 Matter Stores 300 Matter Capacity 300 Sight Range 16 Terrain Scan Range 14 Terrain Scan Density 110 ECM Strength 1 Additional Mass Support 6 Armor Coverage 150 Resistance: KI 35 Resistance: TH 35 Resistance: EX 35 Resistance: EM 35 Resistance: I 35 Resistance: S 35 Resistance: P 35 Evasion (%) 64 Offensive Hacking 20 Item Schematics ----------------- None Robot Schematics ------------------ None Fabricated ------------ Nothing Repaired ---------- Nothing Studied --------- None Alien Tech Used ----------------- None Achievements -------------- DATA ERROR: Steam Global Achievement% For Emergencies Only Organ Harvest Party Time There's More Where That Came From You Again Challenges ------------ None Game ------ Seed CombatAlertModule Manual? 0 Play Time 00:40:56 Cumulative 19.9 hours Start 2026.03.09 @ 08:07:12 End 2026.03.09 @ 08:49:17 Sessions 1 Manual Loads 0 Difficulty Explorer Special Mode None Game No. 36 Rogue 35 Adventurer 0 Explorer 1 Win Type - Total 0 Types 0/0/0/0/0/0/0/0/0/0 Lore% 2 Gallery% 18 Achievement% 4 Wizard Run 0 Options --------- Layout 1 ASCII 0 Keyboard 0 Movement Mouse Keybinds 0 Fullscreen 1 Font 48/Smallcaps Map View 50x35 Zoom Use 0% Tactical HUD 1 Map Filters NONE Filters NONE Steam 1 RUN: 4a1c0f24-c611-4a62-b550-096b8b0bd110